bitfinex/quotes_BTCUSD_20240819
["timestamp","ask_amount","ask_price","bid_price","bid_amount"]
[1724071093217,3.134783,58551.0,58550.0,8.6e-07]
[1724071093433,3.134783,58551.0,58533.0,0.0616]
[1724071093434,1.722173,58549.0,58548.0,8.6e-07]
[1724071093642,1.722173,58549.0,58543.0,0.00040174]
[1724071093643,0.859057,58544.0,58543.0,0.00040174]
[1724071093848,1.57118,58544.0,58543.0,0.00040174]
[1724071094051,2.0867854,58544.0,58543.0,0.00040174]
[1724071094289,2.4284084,58544.0,58543.0,0.00040174]
[1724071094498,2.59240883,58544.0,58543.0,0.00040174]
[1724071094709,2.93403183,58544.0,58543.0,0.00040174]
[1724071094918,2.063959,58543.0,58542.0,7.4e-07]
[1724071095128,2.69163473,58543.0,58542.0,7.4e-07]
[1724071095343,3.96023473,58543.0,58542.0,7.4e-07]
[1724071095554,1.884377,58530.0,58529.0,0.00082]
[1724071095765,2.275377,58530.0,58529.0,0.00082]
[1724071095980,2.375377,58530.0,58529.0,0.00082]
[1724071096190,2.575377,58530.0,58529.0,0.00082]
[1724071096399,2.968033,58530.0,58529.0,0.00082]
[1724071096619,2.968033,58530.0,58509.0,0.0633]
[1724071096620,1.197314,58513.0,58509.0,0.0633]
[1724071096815,1.196314,58513.0,58509.0,0.0633]
[1724071097018,0.854552,58510.0,58509.0,0.0633]
[1724071097311,1.196373,58510.0,58509.0,0.0633]
[1724071098014,1.196373,58510.0,58507.0,0.00821]
[1724071098015,1.200415,58508.0,58507.0,0.00821]
[1724071098251,1.201415,58508.0,58507.0,0.00821]
[1724071099125,1.543248,58508.0,58507.0,0.00777856]
[1724071099401,1.539248,58508.0,58507.0,0.00777856]
[1724071099610,1.546248,58508.0,58507.0,0.00777856]
[1724071099849,1.726848,58508.0,58507.0,0.00777856]
[1724071100066,2.061681,58508.0,58507.0,0.00777856]
[1724071100276,2.084681,58508.0,58507.0,0.00777856]
[1724071100475,2.149881,58508.0,58507.0,0.00777856]
[1724071100701,2.16001605,58508.0,58507.0,0.00777856]
[1724071101133,2.16901605,58508.0,58507.0,0.00777856]
[1724071101341,2.16001605,58508.0,58507.0,0.00777856]
[1724071101744,2.17101605,58508.0,58507.0,0.00777856]
[1724071101957,2.16401605,58508.0,58507.0,0.00777856]
[1724071102167,2.17501605,58508.0,58507.0,0.00777856]
[1724071102579,2.16401605,58508.0,58507.0,0.00777856]
[1724071102788,2.15301605,58508.0,58507.0,0.00777856]
[1724071102990,2.16701605,58508.0,58507.0,0.00777856]
[1724071103220,1.66338305,58508.0,58507.0,0.00777856]
[1724071103421,1.66738305,58508.0,58507.0,0.00777856]
[1724071104033,1.66738305,58508.0,58507.0,0.00730758]
[1724071105086,1.65338305,58508.0,58507.0,0.00730758]
[1724071105614,1.66738305,58508.0,58507.0,0.00730758]
[1724071106144,1.653248,58508.0,58507.0,0.00730758]
[1724071106388,1.655248,58508.0,58507.0,0.00730758]
[1724071107236,1.657248,58508.0,58507.0,0.00730758]
[1724071107977,2.022081,58508.0,58507.0,0.00730758]
[1724071108947,1.680248,58508.0,58507.0,0.00730758]
[1724071110098,2.022081,58508.0,58507.0,0.00730758]
[1724071110325,1.680248,58508.0,58507.0,0.00730758]
[1724071110562,2.098981,58508.0,58507.0,0.00730758]
[1724071110837,1.757148,58508.0,58507.0,0.00730758]
[1724071111098,1.311415,58508.0,58507.0,0.15480758]
[1724071112234,1.210415,58508.0,58507.0,0.15480758]
[1724071112445,0.854582,58508.0,58507.0,0.15480758]
[1724071112962,1.210415,58508.0,58507.0,0.15480758]
[1724071113175,0.868582,58508.0,58507.0,0.15480758]
[1724071113421,0.854582,58508.0,58507.0,0.15480758]
[1724071113626,0.866582,58508.0,58507.0,0.15480758]
[1724071115522,1.208415,58508.0,58507.0,0.15480758]
[1724071115695,0.866582,58508.0,58507.0,0.15480758]
[1724071116527,0.524749,58508.0,58507.0,0.15480758]
[1724071117565,0.866582,58508.0,58507.0,0.15480758]
[1724071118822,0.866582,58508.0,58507.0,1.65480758]
[1724071119472,0.866582,58508.0,58507.0,1.66502483]
[1724071120312,0.866582,58508.0,58507.0,0.16502483]
[1724071120722,0.866582,58508.0,58507.0,0.15480758]
[1724071120927,0.524749,58508.0,58507.0,0.15480758]
[1724071121148,0.012,58508.0,58507.0,0.15480758]
[1724071121569,0.012,58508.0,58507.0,0.16502265]
[1724071121789,0.012,58508.0,58507.0,1.66502265]
[1724071121985,0.854582,58508.0,58507.0,1.66502265]
[1724071122187,0.854582,58508.0,58507.0,0.16502265]
[1724071122188,1.196415,58508.0,58507.0,0.16502265]
[1724071122395,1.202415,58508.0,58507.0,0.16502265]
[1724071122602,1.202415,58508.0,58507.0,0.15480758]
[1724071123230,1.544248,58508.0,58507.0,0.07240758]
[1724071124499,1.544248,58508.0,58507.0,0.00730758]
[1724071124500,1.545248,58508.0,58507.0,0.00730758]
[1724071124716,1.544248,58508.0,58507.0,0.00730758]
[1724071126771,1.202415,58508.0,58507.0,0.00730758]
[1724071126974,1.202415,58508.0,58507.0,0.08780758]
[1724071130299,1.20198938,58508.0,58507.0,0.08780758]
[1724071130508,1.20198938,58508.0,58507.0,0.00730758]
[1724071131323,1.20289359,58508.0,58507.0,0.00730758]
[1724071132777,1.20289359,58508.0,58507.0,0.08530758]
[1724071133999,1.20289359,58508.0,58507.0,0.00730758]
[1724071135042,1.54472659,58508.0,58507.0,0.00730758]
[1724071135260,1.64572659,58508.0,58507.0,0.00730758]
[1724071135461,1.64772659,58508.0,58507.0,0.00730758]
[1724071136074,1.64472659,58508.0,58507.0,0.00730758]
[1724071139425,1.7211074,58508.0,58507.0,0.00730758]
[1724071139635,1.74786366,58508.0,58507.0,0.00730758]
[1724071140248,1.77332394,58508.0,58507.0,0.00730758]
[1724071141276,1.67148285,58508.0,58507.0,0.00730758]
[1724071142230,1.67248285,58508.0,58507.0,0.00730758]
[1724071142636,1.67448285,58508.0,58507.0,0.00730758]
[1724071144239,1.67148285,58508.0,58507.0,0.00730758]
[1724071145181,1.67448285,58508.0,58507.0,0.00730758]
[1724071145662,2.09671585,58508.0,58507.0,0.00730758]
[1724071145903,2.24947748,58508.0,58507.0,0.00730758]
[1724071146149,2.43854885,58508.0,58507.0,0.00730758]
[1724071146367,2.51974885,58508.0,58507.0,0.00730758]
[1724071146573,2.51974885,58508.0,58507.0,5.8e-07]
[1724071146574,2.69974885,58508.0,58507.0,5.8e-07]
[1724071146985,2.73156864,58508.0,58507.0,5.8e-07]
[1724071147249,2.74056864,58508.0,58507.0,5.8e-07]
[1724071147496,2.255573,58499.0,58498.0,0.00776047]
[1724071147710,2.38232926,58499.0,58498.0,0.00776047]
[1724071148511,1.66624326,58499.0,58498.0,0.07026047]
[1724071148761,1.32335726,58499.0,58498.0,0.07026047]
[1724071149188,1.36539874,58499.0,58498.0,0.14936047]
[1724071149617,1.31304493,58499.0,58498.0,0.14936047]
[1724071149858,1.26182124,58499.0,58498.0,0.14936047]
[1724071150043,0.868715,58499.0,58498.0,0.14936047]
[1724071150279,0.014,58499.0,58498.0,0.14936047]
[1724071150536,0.184943,58499.0,58498.0,0.14936047]
[1724071150780,0.014,58499.0,58498.0,0.14936047]
[1724071151018,0.39309769,58501.0,58499.0,0.1405]
[1724071151262,0.22216069,58500.0,58499.0,0.1405]
[1724071151522,0.22216069,58500.0,58499.0,0.1265]
[1724071151781,0.90592069,58500.0,58499.0,0.1265]
[1724071152534,0.90592069,58500.0,58499.0,0.12607782]
[1724071152803,1.24780069,58500.0,58499.0,0.12607782]
[1724071153021,1.25080069,58500.0,58499.0,0.12607782]
[1724071154671,1.25081277,58500.0,58499.0,0.13636372]
[1724071155006,1.25081277,58500.0,58499.0,0.13718572]
[1724071155215,1.199581,58500.0,58499.0,0.13718572]
[1724071156257,0.93454866,58500.0,58499.0,0.13718572]
[1724071156470,0.857701,58500.0,58499.0,0.13718572]
[1724071157294,0.515821,58500.0,58499.0,0.13718572]
[1724071158303,0.857701,58500.0,58499.0,0.13718572]
[1724071158619,0.515821,58500.0,58499.0,0.13718572]
[1724071159222,0.173941,58500.0,58499.0,0.13718572]
[1724071161272,0.0512437,58501.0,58499.0,0.13718572]
[1724071161484,0.2221787,58502.0,58499.0,0.13718572]
[1724071161701,0.002,58500.0,58499.0,0.13718572]
[1724071162117,0.170935,58502.0,58499.0,0.0111079]
[1724071162327,0.3931087,58503.0,58500.0,0.1427]
[1724071162328,0.0512437,58503.0,58500.0,0.1427]
[1724071162534,0.0512437,58506.0,58501.0,0.0612]
[1724071162743,0.24776766,58507.0,58503.0,0.0612]
[1724071162744,0.2221637,58507.0,58503.0,0.0612]
[1724071162956,0.17092,58507.0,58504.0,0.0815]
[1724071163166,0.17092,58507.0,58505.0,0.0612]
[1724071163369,0.00090421,58508.0,58507.0,0.0612]
[1724071163370,0.17182121,58508.0,58507.0,0.0612]
[1724071163573,0.17182121,58508.0,58507.0,0.1386]
[1724071163782,0.17182021,58508.0,58507.0,0.1386]
[1724071163986,0.00090421,58508.0,58507.0,0.14883695]
[1724071164385,0.17182021,58508.0,58507.0,0.14883695]
[1724071164810,0.85548621,58508.0,58507.0,0.14883695]
[1724071165838,0.90671502,58508.0,58507.0,0.1386]
[1724071166045,0.85548621,58508.0,58507.0,0.1386]
[1724071166223,0.00090421,58508.0,58507.0,0.1386]
[1724071166459,0.17682021,58508.0,58507.0,0.139422]
[1724071167919,0.00590421,58508.0,58507.0,0.139422]
[1724071168127,0.17682021,58508.0,58507.0,0.139422]
[1724071169641,0.00590421,58508.0,58507.0,0.139422]
[1724071170370,0.00590421,58508.0,58507.0,1.639422]
[1724071170613,0.00590421,58508.0,58507.0,0.139422]
[1724071170819,0.00590421,58508.0,58507.0,0.14963732]
[1724071174413,0.00090421,58508.0,58507.0,1.64963732]
[1724071174818,0.00190421,58508.0,58507.0,1.65763732]
[1724071175281,0.00090421,58508.0,58507.0,1.64963732]
[1724071175728,0.00190421,58508.0,58507.0,1.65863732]
[1724071177449,0.00190421,58508.0,58507.0,0.15863732]
[1724071178060,0.00190421,58508.0,58507.0,1.65863732]
[1724071181385,0.00190421,58508.0,58507.0,1.75863732]
[1724071181589,0.00190421,58508.0,58507.0,1.75963732]
[1724071181954,0.00190421,58508.0,58507.0,1.75863732]
[1724071184039,0.00190421,58508.0,58507.0,0.25863732]
[1724071184243,0.00190421,58508.0,58507.0,0.2620549]
[1724071184414,0.00190421,58508.0,58507.0,1.7620549]
[1724071186632,0.00190421,58508.0,58507.0,1.7630549]
[1724071186936,0.00190421,58508.0,58507.0,1.7620549]
[1724071187258,0.00190421,58508.0,58507.0,1.7650549]
[1724071187660,0.00190421,58508.0,58507.0,1.7870549]
[1724071187864,0.17084,58535.0,58516.0,0.003]
[1724071188109,0.170844,58533.0,58520.0,0.0665]
[1724071188326,0.170844,58533.0,58524.0,0.0793]
[1724071188551,0.0797,58539.0,58526.0,0.0793]
[1724071188751,0.170836,58536.0,58529.0,0.0665]
[1724071188999,0.170833,58537.0,58530.0,1.5]
[1724071189226,0.170835,58536.0,58530.0,1.5]
[1724071189378,0.170835,58536.0,58531.0,0.01013173]
[1724071189583,0.170837,58535.0,58531.0,0.01013173]
[1724071189776,0.170841,58534.0,58531.0,0.01013173]
[1724071189978,0.0797,58542.0,58532.0,1.5]
[1724071190209,0.341627,58544.0,58533.0,0.14921662]
[1724071190572,0.170824,58540.0,58534.0,0.01008958]
[1724071190714,0.341637,58542.0,58534.0,0.01008958]
[1724071190715,0.170821,58541.0,58534.0,0.01008958]
[1724071190920,0.35191146,58551.0,58535.0,0.1397]
[1724071191098,0.341576,58553.0,58537.0,0.1397]
[1724071191342,0.341576,58553.0,58537.0,0.14311618]
[1724071191586,0.170792,58551.0,58538.0,0.01008828]
[1724071191850,0.170792,58551.0,58539.0,0.00341611]
[1724071192075,0.341587,58551.0,58540.0,0.01004445]
[1724071192274,0.1708,58548.0,58540.0,0.01004445]
[1724071192687,0.341587,58551.0,58540.0,0.01004445]
[1724071192688,0.170797,58549.0,58540.0,0.01004445]
[1724071193519,0.170797,58549.0,58541.0,1.5]
[1724071193723,0.00690311,58543.0,58541.0,1.5]
[1724071193925,0.00690311,58543.0,58542.0,0.01004445]
[1724071194592,0.00090311,58543.0,58542.0,0.01004445]
[1724071194798,0.00590311,58543.0,58542.0,0.01004445]
[1724071195231,0.00090311,58543.0,58542.0,0.01004445]
[1724071195857,0.00590311,58543.0,58542.0,0.01004445]
[1724071197311,0.00590311,58543.0,58537.0,0.1397]
[1724071197483,0.00590311,58543.0,58538.0,1.5]
[1724071198145,0.00590311,58543.0,58539.0,0.01001414]
[1724071198786,0.00090311,58543.0,58539.0,0.01001414]
[1724071198991,0.00690311,58543.0,58537.0,0.1397]
[1724071199198,0.00690311,58543.0,58540.0,0.01001339]
[1724071199399,0.00690311,58543.0,58538.0,1.5]
[1724071199603,0.00690311,58543.0,58541.0,0.01001284]
[1724071199814,0.00690311,58543.0,58538.0,1.5]
[1724071200026,0.00690311,58543.0,58542.0,0.01001284]
[1724071200203,0.00690311,58543.0,58538.0,1.5]
[1724071200446,0.00090311,58543.0,58542.0,0.15071221]
[1724071200681,0.00690311,58543.0,58542.0,0.1407]
[1724071200897,0.00690311,58543.0,58542.0,0.15071221]
[1724071201124,0.00090311,58543.0,58542.0,0.15071221]
[1724071201563,0.00690311,58543.0,58542.0,0.15071221]
[1724071201983,0.00090311,58543.0,58542.0,0.15071221]
[1724071202420,0.00690311,58543.0,58542.0,0.15071221]
[1724071202631,0.00690311,58543.0,58542.0,0.07051221]
[1724071203683,0.00690311,58543.0,58542.0,0.15351221]
[1724071203902,0.00090311,58543.0,58542.0,0.15351221]
[1724071204308,0.00690311,58543.0,58542.0,0.15692809]
[1724071204727,0.00090311,58543.0,58542.0,0.15692809]
[1724071205200,0.00090311,58543.0,58542.0,0.16092809]
[1724071205409,0.00090311,58543.0,58542.0,0.15751221]
[1724071205613,0.00090311,58543.0,58542.0,0.44991221]
[1724071205838,0.00090311,58543.0,58542.0,1.94591221]
[1724071206056,0.00090311,58543.0,58542.0,1.94691221]
[1724071206264,0.00090311,58543.0,58542.0,2.04691221]
[1724071206472,0.00090311,58543.0,58542.0,2.06991221]
[1724071207318,0.00090311,58543.0,58542.0,2.07191221]
[1724071207761,0.00090311,58543.0,58542.0,2.07691221]
[1724071207966,0.00090311,58543.0,58542.0,2.07891221]
[1724071208171,0.00090311,58543.0,58542.0,2.07391221]
[1724071208348,0.00090311,58543.0,58542.0,2.06891221]
[1724071208593,0.00190311,58543.0,58542.0,2.07891221]
[1724071215190,0.00190311,58543.0,58542.0,2.06891221]
[1724071215191,0.00090311,58543.0,58542.0,2.06891221]
[1724071215426,0.00190311,58543.0,58542.0,2.08291221]
[1724071217251,0.00190311,58543.0,58542.0,2.08591221]
[1724071218942,0.00190311,58543.0,58542.0,2.60036421]
[1724071219583,0.00190311,58543.0,58542.0,2.94199921]
[1724071220012,0.00090311,58564.0,58563.0,0.2924]
[1724071220523,0.00090311,58564.0,58563.0,0.29581443]
[1724071220729,0.00090311,58564.0,58563.0,1.79581443]
[1724071221351,0.00090311,58564.0,58563.0,1.80681443]
[1724071221979,0.00090311,58564.0,58563.0,0.011]
[1724071221980,0.08290311,58564.0,58563.0,0.011]
[1724071222191,0.00090311,58564.0,58563.0,0.011]
[1724071223633,0.00090311,58564.0,58563.0,0.02090559]
[1724071225216,0.08290311,58567.0,58563.0,0.02090559]
[1724071225217,0.07245128,58567.0,58563.0,0.02090559]
[1724071225444,0.07245128,58567.0,58564.0,1.5]
[1724071225668,0.07245128,58567.0,58564.0,1.50987796]
[1724071227242,0.0601,58575.0,58565.0,0.0656]
[1724071227445,0.0601,58575.0,58565.0,0.06901464]
[1724071227835,0.170724,58574.0,58566.0,0.00987796]
[1724071228283,0.0788,58573.0,58567.0,0.00341449]
[1724071228493,0.234913,58578.0,58567.0,0.00341449]
[1724071228621,0.0752,58577.0,58565.0,0.0656]
[1724071228821,0.0752,58577.0,58568.0,0.00987796]
[1724071229029,0.245915,58577.0,58565.0,0.0656]
[1724071229226,0.0752,58577.0,58569.0,0.2924]
[1724071229462,0.075,58580.0,58570.0,0.00341418]
[1724071229662,0.075,58580.0,58571.0,0.0606]
[1724071229816,0.075,58580.0,58572.0,0.00341414]
[1724071230034,0.00090311,58581.0,58575.0,0.2924]
[1724071230243,0.00090311,58581.0,58576.0,0.00341378]
[1724071230447,0.00090311,58581.0,58576.0,0.01327896]
[1724071231069,0.00090311,58581.0,58576.0,0.00986518]
[1724071231271,0.00090311,58581.0,58575.0,0.2924]
[1724071231480,0.00090311,58581.0,58577.0,0.00986518]
[1724071231682,0.00090311,58581.0,58576.0,0.01161108]
[1724071231888,0.00090311,58581.0,58575.0,0.2934]
[1724071232091,0.00090311,58581.0,58577.0,0.01161108]
[1724071232292,0.00090311,58581.0,58576.0,0.1409]
[1724071232561,0.00090311,58581.0,58578.0,0.01161108]
[1724071232731,0.00090311,58581.0,58577.0,0.11158026]
[1724071232934,0.00090311,58581.0,58577.0,0.1]
[1724071233100,0.00090311,58581.0,58578.0,0.01158026]
[1724071233957,0.00090311,58581.0,58579.0,1.5]
[1724071234692,0.00090311,58581.0,58580.0,0.01158026]
[1724071237170,0.00090311,58581.0,58572.0,1.5]
[1724071237407,0.00090311,58581.0,58580.0,0.001]
[1724071237852,0.00090311,58581.0,58580.0,0.07683224]
[1724071238073,0.00090311,58581.0,58580.0,1.5653]
[1724071238268,0.00090311,58581.0,58580.0,1.59083224]
[1724071238941,0.00090311,58581.0,58580.0,1.65803224]
[1724071239158,0.00090311,58581.0,58580.0,0.01153224]
[1724071239847,0.00090311,58581.0,58576.0,0.1]
[1724071240059,0.00090311,58581.0,58580.0,0.01153224]
[1724071240273,0.00090311,58581.0,58580.0,0.014]
[1724071240491,0.00090311,58581.0,58580.0,0.02553224]
[1724071240937,0.51301311,58581.0,58580.0,0.01153224]
[1724071241144,0.85442011,58581.0,58580.0,0.01153224]
[1724071241388,0.0653,58579.0,58576.0,0.014]
[1724071241615,0.930275,58577.0,58576.0,0.014]
[1724071241838,0.170731,58572.0,58567.0,0.000821]
[1724071242036,0.0767,58570.0,58567.0,0.000821]
[1724071242447,0.0767,58570.0,58568.0,0.01152269]
[1724071242650,0.0767,58570.0,58567.0,0.000821]
[1724071242882,0.0767,58570.0,58569.0,0.01152269]
[1724071243094,0.0767,58570.0,58567.0,0.000821]
[1724071243574,0.0767,58570.0,58568.0,0.01152269]
[1724071245324,0.512215,58569.0,58568.0,0.01752269]
[1724071245541,0.853692,58569.0,58568.0,0.01752269]
[1724071246649,0.512215,58569.0,58568.0,0.01752269]
[1724071247069,0.512215,58569.0,58568.0,0.01152269]
[1724071248124,0.853692,58569.0,58568.0,0.01152269]
[1724071248543,0.853692,58569.0,58568.0,0.01852269]
[1724071248751,0.853692,58569.0,58568.0,0.007]
[1724071249222,1.340369,58569.0,58568.0,0.007]
[1724071249902,1.27449,58568.0,58567.0,0.000821]
[1724071251207,1.33829,58568.0,58567.0,0.000821]
[1724071252081,1.679773,58568.0,58567.0,0.000821]
[1724071252312,1.684773,58568.0,58567.0,0.000821]
[1724071252531,1.73574922,58568.0,58567.0,0.000821]
[1724071252740,1.73174922,58568.0,58567.0,0.000821]
[1724071252922,1.73374922,58568.0,58567.0,0.000821]
[1724071253342,1.680773,58568.0,58567.0,0.000821]
[1724071253551,1.73179031,58568.0,58567.0,0.000821]
[1724071253756,1.73179016,58568.0,58567.0,0.000821]
[1724071253957,1.680773,58568.0,58567.0,0.000821]
[1724071254404,1.73178557,58568.0,58567.0,0.000821]
[1724071256766,1.73378557,58568.0,58567.0,0.000821]
[1724071257433,1.73578557,58568.0,58567.0,0.000821]
[1724071259092,1.73178557,58568.0,58567.0,0.000821]
[1724071259293,1.73078557,58568.0,58567.0,0.000821]
[1724071259428,1.680773,58568.0,58567.0,0.000821]
[1724071260229,1.27449,58568.0,58567.0,0.000821]
[1724071262510,0.170741,58568.0,58567.0,0.000821]
[1724071263124,0.170741,58568.0,58567.0,0.01248818]
[1724071263125,0.341483,58568.0,58567.0,0.01248818]
[1724071263325,0.170741,58568.0,58567.0,0.000821]
[1724071263734,0.594824,58568.0,58567.0,0.000821]
[1724071263944,0.936307,58568.0,58567.0,0.000821]
[1724071264155,0.594824,58568.0,58567.0,0.000821]
[1724071264357,0.512224,58568.0,58567.0,0.000821]
[1724071265276,0.853707,58568.0,58567.0,0.000821]
[1724071266729,0.512224,58568.0,58567.0,0.000821]
[1724071268769,0.170741,58568.0,58567.0,0.000821]
[1724071268915,0.170741,58568.0,58567.0,0.077221]
[1724071269132,0.00090311,58569.0,58568.0,0.0629]
[1724071269775,0.170741,58568.0,58567.0,0.001821]
[1724071269999,0.170741,58568.0,58567.0,0.000821]
[1724071270419,0.853707,58568.0,58567.0,0.000821]
[1724071272274,0.853707,58568.0,58567.0,0.001821]
[1724071273296,0.853707,58568.0,58567.0,0.01345742]
[1724071273500,0.853707,58568.0,58567.0,0.001821]
[1724071273702,0.853707,58568.0,58567.0,0.01345742]
[1724071273911,0.853707,58568.0,58567.0,0.001821]
[1724071274123,0.853707,58568.0,58567.0,0.01345742]
[1724071274330,0.853707,58568.0,58567.0,0.001821]
[1724071274529,0.853707,58568.0,58567.0,0.01345742]
[1724071274756,0.853707,58568.0,58567.0,0.001821]
[1724071274966,0.853707,58568.0,58567.0,0.01345742]
[1724071275184,0.853707,58568.0,58567.0,0.001821]
[1724071275400,0.853707,58568.0,58567.0,0.01345742]
[1724071275623,0.853707,58568.0,58567.0,0.001821]
[1724071275835,1.19519,58568.0,58567.0,0.001821]
[1724071276043,1.34049,58568.0,58567.0,0.001821]
[1724071276465,1.34139311,58568.0,58567.0,0.001821]
[1724071276889,1.68287611,58568.0,58567.0,0.000821]
[1724071277096,1.70960606,58568.0,58567.0,0.000821]
[1724071277516,1.68287611,58568.0,58567.0,0.000821]
[1724071277941,1.68487611,58568.0,58567.0,0.000821]
[1724071278152,1.71060627,58568.0,58567.0,0.000821]
[1724071278368,1.71260627,58568.0,58567.0,0.000821]
[1724071278587,1.76559139,58568.0,58567.0,0.000821]
[1724071278793,2.23256696,58568.0,58567.0,0.000821]
[1724071279223,2.15608927,58568.0,58567.0,0.000821]
[1724071279658,2.17908927,58568.0,58567.0,0.000821]
[1724071280337,2.17908927,58568.0,58567.0,0.001821]
[1724071280557,2.72703808,58568.0,58567.0,0.001821]
[1724071280991,2.72703808,58568.0,58567.0,0.000821]
[1724071282303,2.74103808,58568.0,58567.0,0.001821]
[1724071282706,2.72703808,58568.0,58567.0,0.000821]
[1724071283140,2.74103808,58568.0,58567.0,0.001821]
[1724071284230,0.002,58555.0,58541.0,0.51177509]
[1724071284446,1.195722,58542.0,58541.0,0.51177509]
[1724071284878,1.195722,58542.0,58538.0,0.0609]
[1724071284879,0.85413,58539.0,58538.0,0.0609]
[1724071285527,1.195782,58539.0,58538.0,0.0609]
[1724071286153,0.85413,58539.0,58538.0,0.0609]
[1724071286587,0.85513,58539.0,58538.0,0.0619]
[1724071287005,0.001,58539.0,58538.0,0.1398]
[1724071287444,0.171826,58539.0,58538.0,0.1398]
[1724071287910,0.001,58539.0,58538.0,0.1398]
[1724071288115,0.001,58539.0,58538.0,1.6398]
[1724071289347,0.001,58539.0,58538.0,1.640621]
[1724071289553,0.001,58539.0,58538.0,1.65238182]
[1724071290975,0.001,58539.0,58538.0,0.15238182]
[1724071291597,0.001,58539.0,58538.0,1.65238182]
[1724071292038,0.171826,58539.0,58538.0,1.65238182]
[1724071292463,0.513478,58539.0,58538.0,0.15238182]
[1724071292882,0.513478,58539.0,58538.0,0.140621]
[1724071294260,0.001,58539.0,58538.0,0.140621]
[1724071296081,0.171826,58539.0,58538.0,0.140621]
[1724071296277,0.001,58539.0,58538.0,0.140621]
[1724071296952,0.001,58539.0,58538.0,1.640621]
[1724071297330,0.001,58539.0,58538.0,1.65236758]
[1724071298627,0.171826,58539.0,58538.0,0.07446758]
[1724071298830,0.85513,58539.0,58538.0,0.07446758]
[1724071299047,1.196782,58539.0,58538.0,0.062721]
[1724071299253,0.85513,58539.0,58538.0,0.062721]
[1724071300694,0.85513,58539.0,58538.0,0.001821]
[1724071302261,0.85513,58539.0,58538.0,0.145421]
[1724071302262,0.001,58539.0,58538.0,0.145421]
[1724071302690,0.001,58539.0,58538.0,0.15716758]
[1724071302895,0.001,58539.0,58538.0,0.145421]
[1724071303380,0.001,58539.0,58538.0,0.15717271]
[1724071304082,0.171826,58539.0,58538.0,0.15717271]
[1724071304289,0.171826,58539.0,58538.0,0.145421]
[1724071304458,0.513478,58539.0,58538.0,0.145421]
[1724071306043,0.85513,58539.0,58538.0,0.145421]
[1724071306757,0.513478,58539.0,58538.0,0.145421]
[1724071306959,0.171826,58539.0,58538.0,0.145421]
[1724071307997,0.513478,58539.0,58538.0,0.145421]
[1724071309269,0.85513,58539.0,58538.0,0.065321]
[1724071310148,1.196782,58539.0,58538.0,0.001821]
[1724071310995,0.85513,58539.0,58538.0,0.001821]
[1724071311405,0.85413,58539.0,58538.0,0.000821]
[1724071311609,0.85413,58539.0,58538.0,0.001821]
[1724071311824,0.85513,58539.0,58538.0,0.001821]
[1724071312447,0.512512,58535.0,58534.0,0.11135467]
[1724071314077,0.854187,58535.0,58534.0,0.0627]
[1724071314711,0.855187,58535.0,58534.0,0.0627]
[1724071314916,0.342675,58535.0,58531.0,0.0658]
[1724071315135,0.512539,58532.0,58531.0,0.0658]
[1724071316190,0.854232,58532.0,58531.0,0.0658]
[1724071316400,0.855232,58532.0,58531.0,0.0658]
[1724071317224,0.513539,58532.0,58531.0,0.0658]
[1724071317637,0.855232,58532.0,58531.0,0.0658]
[1724071317838,0.513539,58532.0,58531.0,0.0658]
[1724071318482,0.512574,58528.0,58527.0,0.06]
[1724071318600,0.170858,58528.0,58527.0,0.06]
[1724071318804,0.341716,58528.0,58527.0,0.01176442]
[1724071318999,0.170875,58522.0,58521.0,0.0805]
[1724071319263,0.170875,58522.0,58521.0,0.09226442]
[1724071319468,0.512626,58522.0,58521.0,0.15226442]
[1724071319702,0.170875,58522.0,58521.0,0.15226442]
[1724071319909,0.170875,58522.0,58521.0,0.07176442]
[1724071320110,0.341736,58525.0,58521.0,0.07176442]
[1724071320319,0.170875,58522.0,58521.0,0.07176442]
[1724071320520,0.512626,58522.0,58521.0,0.07176442]
[1724071320668,0.34174,58524.0,58521.0,0.15026442]
[1724071320870,0.170874,58523.0,58521.0,0.15026442]
[1724071321071,0.170875,58522.0,58521.0,0.15026442]
[1724071321934,0.171875,58522.0,58521.0,0.15026442]
[1724071322821,0.513626,58522.0,58521.0,0.07176442]
[1724071324445,0.171875,58522.0,58521.0,0.07176442]
[1724071325292,0.513626,58522.0,58521.0,0.07176442]
[1724071327113,0.855377,58522.0,58521.0,0.07176442]
[1724071327716,0.854377,58522.0,58521.0,0.07176442]
[1724071328025,0.855377,58522.0,58521.0,0.060821]
[1724071329039,0.855377,58522.0,58521.0,0.000821]
[1724071329227,1.197128,58522.0,58521.0,0.000821]
[1724071330233,1.32542847,58522.0,58521.0,0.000821]
[1724071330431,1.32540372,58522.0,58521.0,0.000821]
[1724071330698,1.35002871,58522.0,58521.0,0.000821]
[1724071331031,1.35102871,58522.0,58521.0,0.000821]
[1724071331234,1.35099157,58522.0,58521.0,0.000821]
[1724071331418,1.274228,58522.0,58521.0,0.000821]
[1724071331637,1.32438795,58522.0,58521.0,0.000821]
[1724071332449,1.32638795,58522.0,58521.0,0.000821]
[1724071333271,1.275228,58522.0,58521.0,0.000821]
[1724071333677,1.273228,58522.0,58521.0,0.000821]
[1724071334104,1.274228,58522.0,58521.0,0.000821]
[1724071334993,1.273228,58522.0,58521.0,0.000821]
[1724071335200,1.196128,58522.0,58521.0,0.000821]
[1724071335647,0.512626,58522.0,58521.0,0.067221]
[1724071336255,0.170875,58522.0,58521.0,1.567221]
[1724071336458,0.170875,58522.0,58521.0,1.57909851]
[1724071336868,0.170875,58522.0,58521.0,0.07909851]
[1724071337071,0.341718,58528.0,58521.0,0.07909851]
[1724071337072,0.341726,58527.0,58521.0,0.07909851]
[1724071337275,0.341718,58528.0,58521.0,0.067221]
[1724071337276,0.341729,58526.0,58521.0,0.067221]
[1724071337483,0.05112333,58530.0,58522.0,0.1465]
[1724071337703,0.00090311,58534.0,58523.0,0.0664]
[1724071337908,0.170862,58527.0,58523.0,0.0782729]
[1724071338114,0.170865,58526.0,58523.0,0.0664]
[1724071338318,0.170865,58526.0,58524.0,1.5]
[1724071338520,0.172865,58526.0,58524.0,1.5]
[1724071338747,0.172865,58526.0,58525.0,0.01187195]
[1724071339985,0.170865,58526.0,58525.0,0.01187195]
[1724071341042,0.854321,58526.0,58525.0,0.01387195]